{"text_format":"1","workbook":"xlsx","n_sheets":12,"sheets":["EnablingServices","Detail","RawDataForAdults","RawDataForAdults_PT","RawDataForBabies","RawDataForBabies_PT","01CAREWareDemographics","02CAREWareRelationships","11DemographicsFor2429","12BackgroundFor2429","13PrenatalFor2429","14ParentChildFor2429"],"not_rendered":{"charts":5,"images":2,"macros":1,"external_links":0,"defined_names":10,"comments":0,"pivot_tables":2},"unopened":[],"bounds":{"document_bytes":16777216,"sheet_cells":100000,"rows_first":2000,"rows_last":500,"rows_between":2000,"halvings":0,"cell_chars":16384,"cell_head_chars":4096},"cells_cut":0,"cells_raw":0,"read":"whole","date_system":"1900"}

{"sheet":"EnablingServices","index":0,"n_rows":55,"n_cols":18,"rows_kept":55,"cut":false,"hidden":false,"merged":[[6,1,6,8],[6,9,6,12],[6,13,6,17],[28,0,28,1],[50,1,50,4]]}
["Enabling Services"]
[]
["Period Start Date","2025-01-01"]
["Period End Date","2025-12-31"]
["Calculate Age Base Date","2025-06-30"]
["Processed On","2026-02-25"]
[null,"RACE",null,null,null,null,null,null,null,"ETHNICITY",null,null,null,"INSURANCE"]
[null,"American Indian or Alaska Native","Asian","Black or African American","Native Hawaiian or Other Pacific Islander","White","More than One Race","Unknown / Unrecorded","Total","Hispanic or Latino","Not Hispanic or Latino","Unknown / Unrecorded","Total","Public","Private","Uninsured","Unknown / Unrecorded","Total"]
["Infants (age <1 year)",0,0,0,0,0,0,0,{"$f":"SUM(B9:H9)","v":0},0,0,0,{"$f":"SUM(J9:L9)","v":0},0,0,0,0,{"$f":"SUM(N9:Q9)","v":0}]
["Children, Adolescents, and Young Adults (age 1-25)",0,0,0,0,0,0,0,{"$f":"SUM(B10:H10)","v":0},0,0,0,{"$f":"SUM(J10:L10)","v":0},0,0,0,0,{"$f":"SUM(N10:Q10)","v":0}]
["Children and Adolescents (age 1-17)",0,0,0,0,0,0,0,0,0,0,0,{"$f":"SUM(J11:L11)","v":0},0,0,0,0,0]
["Young Adults (age 18-25)",0,0,0,0,0,0,0,0,0,0,0,0,0,0,0,0,0]
["CYSHCN (age 0-25)",0,0,0,0,0,0,0,0,0,0,0,0,0,0,0,0,0]
["Pregnant / postpartum persons (all ages)",0,0,0,0,0,0,0,0,0,0,0,0,0,0,0,0,0]
["Non-pregnant women (age 26+)",0,0,0,0,0,0,0,0,0,0,0,0,0,0,0,0,0]
["Men (age 26+)",0,0,0,0,0,0,0,0,0,0,0,0,0,0,0,0,0]
["Families",0,0,0,0,0,0,0,0,0,0,0,0,0,0,0,0,0]
["Other (specify): _________",0,0,0,0,0,0,0,0,0,0,0,0,0,0,0,0,0]
["Unknown",0,0,0,0,0,0,0,0,0,0,0,0,0,0,0,0,0]
["Totals",{"$f":"SUM(B9:B19)","v":0},{"$f":"SUM(C9:C19)","v":0},{"$f":"SUM(D9:D19)","v":0},{"$f":"SUM(E9:E19)","v":0},0,0,0,0,0,0,0,0,0,0,0,0,0]
[]
["If served “Children, Adolescents, and Young Adults (age 1-25)”, “Children and Adolescents (age 1-17)”, and/or “Young Adults (age 18-25)”, and reported them in the table above, please indicate the age range of children, adolescents, and/or young adults served."]
[]
["Age Range of Children",null,"to"]
["Age Range of Adolescents",null,"to"]
["Age Range of Young Adults",null,"to"]
[]
["Enabling Services"]
["Types of enabling services provided in the reporting period (select all that apply)"]
["Care Management ",false]
["Care coordination ",false]
["Referrals ",false]
["Health education ",false]
["Transition services ",false]
["Consultation ",false]
["Translation/interpretation ",false]
["Transportation ",false]
["Eligibility assistance ",false]
["Environmental health risk reduction ",false]
["Health literacy and outreach",false]
["Purchase of equipment and medical supplies (for use in a care setting)",false]
["Other (specify)",false]
[]
[]
[]
[]
[]
["Outputs"]
[null,"Total # served by enabling services in the reporting period"]
[]
[null,"# served by enabling services using telehealth in the reporting period\n(Note: this number is a subset of Total # served by enabling services)"]
[]
[]
[]
["Comments"]

{"sheet":"Detail","index":1,"n_rows":0,"n_cols":0,"rows_kept":0,"cut":false,"hidden":false,"merged":[]}

{"sheet":"RawDataForAdults","index":2,"n_rows":0,"n_cols":0,"rows_kept":0,"cut":false,"hidden":true,"merged":[]}

{"sheet":"RawDataForAdults_PT","index":3,"n_rows":10,"n_cols":8,"rows_kept":10,"cut":false,"hidden":true,"merged":[]}
[]
[]
["Count of PPUID","Column Labels"]
["Row Labels","AmericanIndian","Asian","Black","NativeHawaiian","RaceDeclined","White","Grand Total"]
["Declined to answer",null,null,8,null,null,1,9]
["On his or her back",null,1,306,4,40,94,445]
["On his or her side",null,null,26,4,3,7,40]
["On his or her stomach",null,null,1,null,null,null,1]
["(blank)",2,3,484,8,38,110,645]
["Grand Total",2,4,825,16,81,212,1140]

{"sheet":"RawDataForBabies","index":4,"n_rows":0,"n_cols":0,"rows_kept":0,"cut":false,"hidden":true,"merged":[]}

{"sheet":"RawDataForBabies_PT","index":5,"n_rows":13,"n_cols":8,"rows_kept":13,"cut":false,"hidden":true,"merged":[]}
[]
[]
["Count of PPUID","Column Labels"]
["Row Labels","AmericanIndian","Asian","Black","NativeHawaiian","RaceDeclined","White","Grand Total"]
["CALIPSO, GRAZIELA",1,2,165,null,11,15,194]
["HOYOS, JULIANA",null,null,115,null,37,82,234]
["JAMEION, SHELLYANN",null,2,157,2,7,29,197]
["JAMEISON, SHELLYANN",null,null,17,1,null,4,22]
["LUBIN, JERLYNE",null,null,176,null,null,32,208]
["PIRRE-CHARLES, WITCHELLE",null,null,69,10,5,22,106]
["SKERVIN, kAY-ANN",1,null,125,3,10,28,167]
["(blank)",null,null,1,null,11,null,12]
["Grand Total",2,4,825,16,81,212,1140]

{"sheet":"01CAREWareDemographics","index":6,"n_rows":0,"n_cols":0,"rows_kept":0,"cut":false,"hidden":true,"merged":[]}

{"sheet":"02CAREWareRelationships","index":7,"n_rows":0,"n_cols":0,"rows_kept":0,"cut":false,"hidden":true,"merged":[]}

{"sheet":"11DemographicsFor2429","index":8,"n_rows":0,"n_cols":0,"rows_kept":0,"cut":false,"hidden":true,"merged":[]}

{"sheet":"12BackgroundFor2429","index":9,"n_rows":0,"n_cols":0,"rows_kept":0,"cut":false,"hidden":true,"merged":[]}

{"sheet":"13PrenatalFor2429","index":10,"n_rows":0,"n_cols":0,"rows_kept":0,"cut":false,"hidden":true,"merged":[]}

{"sheet":"14ParentChildFor2429","index":11,"n_rows":0,"n_cols":0,"rows_kept":0,"cut":false,"hidden":true,"merged":[]}